Workbook

Sheet Dashboard
A1: Salary Computation | E1: =IF((((C15-B3)*100)/B3)<50,"","Validate") -> 
A2: Particular | B2: Details | C2: Considering Factor | D2: Remarks
A3: Current CTC | B3: 650000
A4: Last appraisal<6 Months | B4: Yes
A5: Offer in hand | B5: Yes
A6: Offer | B6: 800000
A7: Experience - sap | B7: 4
A8: Education
A9: Criticality Rare Technology
A10: Interview Rating | B10: 4
A11: Grade | B11: Junior
A12: Module | B12: SD
A13: Certification
A15: Computed Compensation | C15: =IF(AND(B4="Yes",B5="Yes"),(IF(C6<>"", B6+B6*(C6/100),(IF(B5="YES",(B6+B6*0.1),(B3+B3*0.2))))),(IF(C6<>"", B6+B6*(C6/100),(IF(B5="YES",(B6+B6*0.2),(B3+B3*0.3)))))) -> 880000 | D15: =IF(C6<>"", B6+B6*(C6/100),(IF(B5="YES",(B6+B6*0.2),(B3+B3*0.3)))) -> 960000
A16: Standard Compensation | C16: =INDEX('Compensation Matrix'!C3:AB12,MATCH(Dashboard!B7,'Compensation Matrix'!B3:B12,0),MATCH(Dashboard!B12,'Compensation Matrix'!C2:AB2,0)) -> 768950
A17: Variation | C17: =C15-C16 -> 111050 | D17: =C17/C16% -> 14.44177125 | E17: =IF(AND(B10>4,D17<20),"Pass",IF(AND(B10>3,D17<15),"Pass",IF(AND(B10>=3,D17<10),"Pass","Fail"))) -> Pass
A18: Expected | C18: 600000 | D18: =IF(C18>C15,"Not Fulfilled","Fulfilled") -> Fulfilled

Sheet Compensation Matrix
C1: Module
B2: Column1 | C2: ABAP | D2: Basis | E2: BI | F2: CA | G2: CO | H2: CS | I2: EC | J2: FI | K2: HR | L2: IM | M2: IS | N2: LIS | O2: MM | P2: CRM | Q2: PLCM | R2: SEM | S2: SRM | T2: Netweaver | U2: PM | V2: PP | W2: PS | X2: QM | Y2: SCM | Z2: SD | AA2: SMB | AB2: TR
A3: Eperience | B3: 1 | C3: 250000 | D3: 300000 | E3: 400000 | F3: 400000 | G3: 400000 | H3: 400000 | I3: 400000 | J3: 400000 | K3: 450000 | L3: 450000 | M3: 450000 | N3: 350000 | O3: 400000 | P3: 450000 | Q3: 450000 | R3: 450000 | S3: 450000 | T3: 300000 | U3: 450000 | V3: 400000 | W3: 450000 | X3: 400000 | Y3: 450000 | Z3: 350000 | AA3: 450000 | AB3: 450000
B4: 2 | C4: =C3+(C3*30%) -> 325000 | D4: 390000 | E4: 520000 | F4: =F3+(F3*30%) -> 520000 | G4: 520000 | H4: =H3+(H3*30%) -> 520000 | I4: =I3+(I3*30%) -> 520000 | J4: =J3+(J3*30%) -> 520000 | K4: 585000 | L4: 585000 | M4: =M3+(M3*30%) -> 585000 | N4: =N3+(N3*30%) -> 455000 | O4: =O3+(O3*30%) -> 520000 | P4: 585000 | Q4: =Q3+(Q3*30%) -> 585000 | R4: 585000 | S4: 585000 | T4: 390000 | U4: =U3+(U3*30%) -> 585000 | V4: 520000 | W4: 585000 | X4: 520000 | Y4: 585000 | Z4: =Z3+(Z3*30%) -> 455000 | AA4: 585000 | AB4: =AB3+(AB3*30%) -> 585000
B5: 3 | C5: 422500 | D5: 507000 | E5: 676000 | F5: 676000 | G5: 676000 | H5: =H4+(H4*30%) -> 676000 | I5: 676000 | J5: 676000 | K5: 760500 | L5: 760500 | M5: 760500 | N5: 591500 | O5: 676000 | P5: 760500 | Q5: 760500 | R5: 760500 | S5: 760500 | T5: 507000 | U5: 760500 | V5: 676000 | W5: 760500 | X5: 676000 | Y5: 760500 | Z5: =Z4+(Z4*30%) -> 591500 | AA5: 760500 | AB5: 760500
B6: 4 | C6: 549250 | D6: 659100 | E6: 878800 | F6: 878800 | G6: 878800 | H6: =H5+(H5*30%) -> 878800 | I6: 878800 | J6: 878800 | K6: 988650 | L6: 988650 | M6: 988650 | N6: 768950 | O6: 878800 | P6: 988650 | Q6: 988650 | R6: 988650 | S6: 988650 | T6: 659100 | U6: 988650 | V6: 878800 | W6: 988650 | X6: 878800 | Y6: 988650 | Z6: =Z5+(Z5*30%) -> 768950 | AA6: 988650 | AB6: 988650
B7: 5 | C7: 714025 | D7: 856830 | E7: 1142440 | F7: 1142440 | G7: 1142440 | H7: =H6+(H6*30%) -> 1142440 | I7: 1142440 | J7: 1142440 | K7: 1285245 | L7: 1285245 | M7: 1285245 | N7: 999635 | O7: 1142440 | P7: 1285245 | Q7: 1285245 | R7: 1285245 | S7: 1285245 | T7: 856830 | U7: 1285245 | V7: 1142440 | W7: 1285245 | X7: 1142440 | Y7: 1285245 | Z7: =Z6+(Z6*30%) -> 999635 | AA7: 1285245 | AB7: 1285245
B8: 6 | C8: =C7+(C7*20%) -> 856830 | D8: 1028196 | E8: 1370928 | F8: =F7+(F7*20%) -> 1370928 | G8: 1370928 | H8: =H7+(H7*20%) -> 1370928 | I8: =I7+(I7*20%) -> 1370928 | J8: =J7+(J7*20%) -> 1370928 | K8: 1542294 | L8: 1542294 | M8: =M7+(M7*20%) -> 1542294 | N8: =N7+(N7*20%) -> 1199562 | O8: =O7+(O7*20%) -> 1370928 | P8: 1542294 | Q8: =Q7+(Q7*20%) -> 1542294 | R8: 1542294 | S8: 1542294 | T8: 1028196 | U8: =U7+(U7*20%) -> 1542294 | V8: 1370928 | W8: 1542294 | X8: 1370928 | Y8: 1542294 | Z8: =Z7+(Z7*20%) -> 1199562 | AA8: 1542294 | AB8: =AB7+(AB7*20%) -> 1542294
B9: 7 | C9: 1028196 | D9: 1233835.2 | E9: 1645113.6 | F9: 1645113.6 | G9: 1645113.6 | H9: =H8+(H8*20%) -> 1645113.6 | I9: 1645113.6 | J9: 1645113.6 | K9: 1850752.8 | L9: 1850752.8 | M9: 1850752.8 | N9: 1439474.4 | O9: 1645113.6 | P9: 1850752.8 | Q9: 1850752.8 | R9: 1850752.8 | S9: 1850752.8 | T9: 1233835.2 | U9: 1850752.8 | V9: 1645113.6 | W9: 1850752.8 | X9: 1645113.6 | Y9: 1850752.8 | Z9: =Z8+(Z8*20%) -> 1439474.4 | AA9: 1850752.8 | AB9: 1850752.8
B10: 8 | C10: 1233835.2 | D10: 1480602.24 | E10: 1974136.32 | F10: 1974136.32 | G10: 1974136.32 | H10: =H9+(H9*20%) -> 1974136.32 | I10: 1974136.32 | J10: 1974136.32 | K10: 2220903.36 | L10: 2220903.36 | M10: 2220903.36 | N10: 1727369.28 | O10: 1974136.32 | P10: 2220903.36 | Q10: 2220903.36 | R10: 2220903.36 | S10: 2220903.36 | T10: 1480602.24 | U10: 2220903.36 | V10: 1974136.32 | W10: 2220903.36 | X10: 1974136.32 | Y10: 2220903.36 | Z10: =Z9+(Z9*20%) -> 1727369.28 | AA10: 2220903.36 | AB10: 2220903.36
B11: 9 | C11: 1480602.24 | D11: 1776722.688 | E11: 2368963.584 | F11: 2368963.584 | G11: 2368963.584 | H11: =H10+(H10*20%) -> 2368963.584 | I11: 2368963.584 | J11: 2368963.584 | K11: 2665084.032 | L11: 2665084.032 | M11: 2665084.032 | N11: 2072843.136 | O11: 2368963.584 | P11: 2665084.032 | Q11: 2665084.032 | R11: 2665084.032 | S11: 2665084.032 | T11: 1776722.688 | U11: 2665084.032 | V11: 2368963.584 | W11: 2665084.032 | X11: 2368963.584 | Y11: 2665084.032 | Z11: =Z10+(Z10*20%) -> 2072843.136 | AA11: 2665084.032 | AB11: 2665084.032
B12: 10 | C12: 1776722.688 | D12: 2132067.226 | E12: 2842756.301 | F12: 2842756.301 | G12: 2842756.301 | H12: =H11+(H11*20%) -> 2842756.301 | I12: 2842756.301 | J12: 2842756.301 | K12: 3198100.838 | L12: 3198100.838 | M12: 3198100.838 | N12: 2487411.763 | O12: 2842756.301 | P12: 3198100.838 | Q12: 3198100.838 | R12: 3198100.838 | S12: 3198100.838 | T12: 2132067.226 | U12: 3198100.838 | V12: 2842756.301 | W12: 3198100.838 | X12: 2842756.301 | Y12: 3198100.838 | Z12: =Z11+(Z11*20%) -> 2487411.763 | AA12: 3198100.838 | AB12: 3198100.838

Sheet Sheet3
